[Event "FIDE Womens World Cup 2021"]
[Site "Sochi"]
[Date "2021.07.13"]
[Round "1.2"]
[White "Belenkaya, Dina"]
[Black "Injac, Teodora"]
[Result "0-1"]
[ECO "C45"]
[WhiteElo "2341"]
[BlackElo "2370"]
[Annotator "NA"]
[PlyCount "124"]
[EventDate "2021.07.12"]
[EventType "k.o."]
[EventCountry "RUS"]
[SourceTitle "playchess.com"]
[Source "ChessBase"]
[SourceQuality "1"]
[TimeControl "40/5400+30:1800+30"]

1. e4 {[%emt 0:00:06]} e5 {[%emt 0:00:11]} 2. Nf3 {[%emt 0:00:14]} Nc6 {[%emt 0:00:05]} 3. d4 {[%emt 0:00:30]} exd4 {[%emt 0:00:16]} 4. Nxd4 {[%emt 0:00:08]} Bc5 {[%emt 0:00:40]} 5. Nb3 {[%emt 0:01:05]} Bb6 {[%emt 0:00:22]} 6. Qe2 {[%emt 0:00:35]} a5 {[%emt 0:07:39]} 7. a4 {[%emt 0:01:08]} d6 {[%emt 0:01:54]} 8. Nc3 {[%emt 0:01:34]} Nb4 {[%emt 0:02:51]} 9. Nb5 {[%emt 0:08:36]} Nf6 {[%emt 0:09:03]} 10. c3 {[%emt 0:01:17]} Nc6 {[%emt 0:01:23]} 11. Bg5 {[%emt 0:04:25]} h6 {[%emt 0:10:26]} 12. Bh4 {[%emt 0:04:14]} Qe7 {[%emt 0:06:01]} 13. f3 {[%emt 0:04:22]} Be6 {[%emt 0:09:41]} 14. N3d4 {[%emt 0:02:18]} Nxd4 {[%emt 0:00:22]} 15. Nxd4 {[%emt 0:12:37]} Bxd4 {[%emt 0:21:57]} 16. cxd4 {[%emt 0:00:59]} d5 {[%emt 0:00:17]} 17. e5 {[%emt 0:17:58]} Qb4+ {[%emt 0:01:03]} 18. Qd2 {[%emt 0:00:21]} Qxd2+ {[%emt 0:02:50]} 19. Kxd2 {[%emt 0:00:03]} g5 {[%emt 0:01:56]} 20. exf6 {[%emt 0:10:21]} gxh4 {[%emt 0:00:02]} 21. g4 {[%emt 0:04:23]} hxg3 {[%emt 0:13:33]} 22. hxg3 {[%emt 0:00:02]} Kd7 {[%emt 0:01:25]} 23. g4 {[%emt 0:08:51]} Rag8 {[%emt 0:00:06]} 24. Bd3 {[%emt 0:00:46]} h5 {[%emt 0:01:03]} 25. Rag1 {[%emt 0:01:48]} hxg4 {[%emt 0:00:19]} 26. Bh7 {[%emt 0:01:37]} Rc8 {[%emt 0:02:04]} 27. f4 {[%emt 0:06:28]} Kd6 {[%emt 0:00:02]} 28. f5 {[%emt 0:00:14]} Bd7 {[%emt 0:00:22]} 29. Rxg4 {[%emt 0:00:17]} Rxh7 {[%emt 0:00:54]} 30. Rxh7 {[%emt 0:00:47]} Bxf5 {[%emt 0:00:06]} 31. Rgg7 {[%emt 0:01:30]} Bxh7 {[%emt 0:00:09]} 32. Rxh7 {[%emt 0:00:08]} Ke6 {[%emt 0:00:13]} 33. Rh2 {[%emt 0:06:25]} Kxf6 {[%emt 0:02:06]} 34. Rf2+ {[%emt 0:00:03]} Ke6 {[%emt 0:00:17]} 35. Re2+ {[%emt 0:00:07]} Kd6 {[%emt 0:00:40]} 36. Rf2 {[%emt 0:00:24]} Rf8 {[%emt 0:00:14]} 37. Rf6+ {[%emt 0:00:44]} Ke7 {[%emt 0:00:11]} 38. Rf5 {[%emt 0:00:47]} c6 {[%emt 0:00:52]} 39. Ke3 {[%emt 0:00:42]} Rh8 {[%emt 0:01:23]} 40. Rf3 {[%emt 0:00:52]} Rh2 {[%emt 0:01:37]} 41. b3 {[%emt 0:30:06]} Rb2 {[%emt 0:32:12]} 42. Kf4 {[%emt 0:00:15]} Re2 {[%emt 0:00:48]} 43. Kf5 {[%emt 0:00:55]} Re4 {[%emt 0:00:00]} 44. Rd3 {[%emt 0:00:00]} Kd6 {[%emt 0:00:00]} 45. Kf6 {[%emt 0:00:00]} Rf4+ {[%emt 0:00:00]} 46. Kg5 {[%emt 0:00:00]} Rf1 {[%emt 0:00:00]} 47. Kg4 {[%emt 0:00:00]} c5 {[%emt 0:00:00]} 48. dxc5+ {[%emt 0:00:00]} Kxc5 {[%emt 0:00:00]} 49. Rc3+ {[%emt 0:00:00]} Kb4 {[%emt 0:00:00]} 50. Rc7 {[%emt 0:00:00]} Kxb3 {[%emt 0:00:00]} 51. Rxb7+ {[%emt 0:00:00]} Kxa4 {[%emt 0:00:00]} 52. Rd7 {[%emt 0:00:00]} Kb3 {[%emt 0:00:00]} 53. Rxd5 {[%emt 0:00:00]} a4 {[%emt 0:00:00]} 54. Rd3+ {[%emt 0:00:00]} Kb2 {[%emt 0:00:00]} 55. Rd2+ {[%emt 0:00:00]} Kc3 {[%emt 0:00:00]} 56. Re2 {[%emt 0:00:00]} a3 {[%emt 0:00:00]} 57. Re3+ {[%emt 0:00:00]} Kb2 {[%emt 0:00:00]} 58. Re2+ {[%emt 0:00:00]} Kb1 {[%emt 0:00:00]} 59. Re7 {[%emt 0:00:00]} a2 {[%emt 0:00:00]} 60. Rb7+ {[%emt 0:00:00]} Kc2 {[%emt 0:00:00]} 61. Rc7+ {[%emt 0:00:00]} Kb3 {[%emt 0:00:00]} 62. Rb7+ {[%emt 0:00:00]} Kc4 {[%emt 0:00:00]} 0-1

[Event "FIDE Womens World Cup 2021"]
[Site "Sochi"]
[Date "2021.07.13"]
[Round "1.2"]
[White "Radeva, Viktoria"]
[Black "Abrahamyan, Tatev"]
[Result "0-1"]
[ECO "C02"]
[WhiteElo "2335"]
[BlackElo "2352"]
[Annotator "NA"]
[PlyCount "94"]
[EventDate "2021.07.12"]
[EventType "k.o."]
[EventCountry "RUS"]
[SourceTitle "playchess.com"]
[Source "ChessBase"]
[SourceQuality "1"]
[TimeControl "40/5400+30:1800+30"]

1. e4 {[%emt 0:00:03]} e6 {[%emt 0:00:05]} 2. d4 {[%emt 0:00:06]} d5 {[%emt 0:00:03]} 3. e5 {[%emt 0:00:03]} c5 {[%emt 0:00:19]} 4. c3 {[%emt 0:00:05]} Nc6 {[%emt 0:00:03]} 5. Nf3 {[%emt 0:00:06]} Qb6 {[%emt 0:03:20]} 6. a3 {[%emt 0:00:18]} Nh6 {[%emt 0:09:38]} 7. b4 {[%emt 0:00:22]} cxd4 {[%emt 0:00:12]} 8. Bxh6 {[%emt 0:00:05]} gxh6 {[%emt 0:00:06]} 9. cxd4 {[%emt 0:00:04]} Bd7 {[%emt 0:00:45]} 10. Be2 {[%emt 0:00:12]} Rc8 {[%emt 0:02:19]} 11. O-O {[%emt 0:01:51]} Bg7 {[%emt 0:01:22]} 12. Qd3 {[%emt 0:45:45]} O-O {[%emt 0:38:13]} 13. Nbd2 {[%emt 0:04:25]} f6 {[%emt 0:12:49]} 14. exf6 {[%emt 0:03:59]} Rxf6 {[%emt 0:00:15]} 15. b5 {[%emt 0:10:18]} Ne7 {[%emt 0:04:37]} 16. Ne5 {[%emt 0:04:38]} Be8 {[%emt 0:00:28]} 17. Nb3 {[%emt 0:03:46]} Ng6 {[%emt 0:03:45]} 18. Ng4 {[%emt 0:01:46]} Rf8 {[%emt 0:02:20]} 19. g3 h5 {[%emt 0:05:48]} 20. Ne3 {[%emt 0:02:30]} h4 {[%emt 0:00:32]} 21. a4 {[%emt 0:02:06]} Qd6 {[%emt 0:02:17]} 22. Rac1 {[%emt 0:03:52]} Bf7 {[%emt 0:00:43]} 23. Bg4 {[%emt 0:01:34]} b6 {[%emt 0:02:33]} 24. Rc3 {[%emt 0:02:40]} Rxc3 {[%emt 0:01:33]} 25. Qxc3 {[%emt 0:00:05]} Ne7 {[%emt 0:00:02]} 26. Ng2 {[%emt 0:04:52]} hxg3 {[%emt 0:02:49]} 27. hxg3 {[%emt 0:00:43]} e5 {[%emt 0:02:27]} 28. dxe5 {[%emt 0:00:56]} Bxe5 {[%emt 0:00:02]} 29. Qd3 {[%emt 0:02:03]} Bg6 {[%emt 0:01:40]} 30. Qd2 {[%emt 0:01:56]} d4 {[%emt 0:00:47]} 31. Nc1 {[%emt 0:02:32]} d3 {[%emt 0:01:24]} 32. Re1 {[%emt 0:01:54]} Qc5 {[%emt 0:01:48]} 33. Nxd3 {[%emt 0:00:47]} Bxd3 {[%emt 0:00:44]} 34. Qxd3 {[%emt 0:00:27]} Qxf2+ {[%emt 0:00:23]} 35. Kh2 {[%emt 0:00:08]} Qf6 {[%emt 0:00:50]} 36. Qc4+ {[%emt 0:00:48]} Kh8 {[%emt 0:00:24]} 37. Qe4 {[%emt 0:00:39]} Ng6 {[%emt 0:00:39]} 38. Re3 {[%emt 0:00:23]} Qg5 {[%emt 0:00:42]} 39. Bh3 {[%emt 0:00:37]} Kg7 {[%emt 0:00:32]} 40. Rd3 {[%emt 0:00:30]} Rf7 {[%emt 0:00:12]} 41. Re3 {[%emt 0:08:15]} h5 {[%emt 0:06:13]} 42. Be6 {[%emt 0:10:51]} Re7 {[%emt 0:06:02]} 43. Qd5 {[%emt 0:05:39]} h4 {[%emt 0:07:40]} 44. Qd8 {[%emt 0:05:51]} hxg3+ {[%emt 0:01:22]} 45. Kg1 {[%emt 0:00:06]} Qf6 {[%emt 0:01:26]} 46. Qg8+ {[%emt 0:02:00]} Kh6 {[%emt 0:00:05]} 47. Rxe5 {[%emt 0:00:52]} Qf2+ {[%emt 0:00:10]} 0-1

[Event "FIDE Womens World Cup 2021"]
[Site "Sochi"]
[Date "2021.07.13"]
[Round "1.2"]
[White "Yu, Jennifer"]
[Black "Kulon, Klaudia"]
[Result "1/2-1/2"]
[ECO "A52"]
[WhiteElo "2289"]
[BlackElo "2363"]
[Annotator "NA"]
[PlyCount "120"]
[EventDate "2021.07.12"]
[EventType "k.o."]
[EventCountry "RUS"]
[SourceTitle "playchess.com"]
[Source "ChessBase"]
[SourceQuality "1"]
[TimeControl "40/5400+30:1800+30"]

1. d4 {[%emt 0:00:04]} Nf6 {[%emt 0:00:05]} 2. c4 {[%emt 0:00:22]} e5 {[%emt 0:00:13]} 3. dxe5 {[%emt 0:00:54]} Ng4 {[%emt 0:00:05]} 4. Bf4 {[%emt 0:01:55]} Nc6 {[%emt 0:01:00]} 5. Nf3 {[%emt 0:00:20]} Bb4+ {[%emt 0:00:23]} 6. Nbd2 {[%emt 0:03:59]} Qe7 {[%emt 0:00:10]} 7. a3 {[%emt 0:01:55]} Ngxe5 {[%emt 0:00:41]} 8. Nxe5 {[%emt 0:00:05]} Nxe5 {[%emt 0:00:04]} 9. e3 {[%emt 0:00:13]} Bc5 {[%emt 0:00:29]} 10. Be2 {[%emt 0:02:36]} d6 {[%emt 0:01:47]} 11. Qc2 {[%emt 0:01:51]} a5 {[%emt 0:03:31]} 12. Nb3 {[%emt 0:10:11]} Bb6 {[%emt 0:02:22]} 13. O-O-O {[%emt 0:05:15]} O-O {[%emt 0:07:55]} 14. Nd4 {[%emt 0:07:53]} Qf6 {[%emt 0:02:08]} 15. h4 {[%emt 0:10:57]} Bxd4 {[%emt 0:11:42]} 16. Rxd4 {[%emt 0:00:06]} Bf5 {[%emt 0:00:39]} 17. Bg5 {[%emt 0:08:24]} Bxc2 {[%emt 0:06:42]} 18. Bxf6 {[%emt 0:01:31]} Bf5 {[%emt 0:03:39]} 19. Bxe5 {[%emt 0:13:58]} dxe5 {[%emt 0:00:05]} 20. Rd5 {[%emt 0:00:04]} f6 {[%emt 0:00:49]} 21. Rhd1 {[%emt 0:00:05]} Be6 {[%emt 0:02:44]} 22. R5d2 {[%emt 0:00:05]} Kf7 {[%emt 0:01:04]} 23. f4 {[%emt 0:04:45]} exf4 {[%emt 0:02:05]} 24. exf4 {[%emt 0:00:07]} Ke7 {[%emt 0:03:22]} 25. Bf3 {[%emt 0:02:39]} c6 {[%emt 0:01:25]} 26. Re1 {[%emt 0:06:23]} Kf7 {[%emt 0:00:57]} 27. Rd6 {[%emt 0:02:25]} Rfe8 {[%emt 0:00:56]} 28. c5 {[%emt 0:02:49]} a4 {[%emt 0:02:20]} 29. Kd2 {[%emt 0:04:25]} Ra5 {[%emt 0:01:33]} 30. Bd1 {[%emt 0:01:53]} Rb5 {[%emt 0:05:44]} 31. Bxa4 {[%emt 0:00:25]} Rxb2+ {[%emt 0:00:08]} 32. Kc1 {[%emt 0:03:59]} Rb1+ {[%emt 0:01:48]} 33. Kxb1 {[%emt 0:00:04]} Bf5+ {[%emt 0:00:02]} 34. Kb2 {[%emt 0:00:17]} Rxe1 {[%emt 0:00:05]} 35. Bd1 {[%emt 0:00:12]} Be6 {[%emt 0:06:54]} 36. Rd4 {[%emt 0:02:13]} Rh1 {[%emt 0:05:01]} 37. h5 {[%emt 0:02:45]} Bd5 {[%emt 0:00:20]} 38. g4 {[%emt 0:00:04]} f5 {[%emt 0:04:22]} 39. gxf5 {[%emt 0:00:48]} Kf6 {[%emt 0:00:06]} 40. a4 {[%emt 0:00:29]} Kxf5 {[%emt 0:01:53]} 41. Bc2+ {[%emt 0:03:45]} Kf6 {[%emt 0:01:23]} 42. Bxh7 {[%emt 0:00:55]} Rxh5 {[%emt 0:00:41]} 43. Bc2 {[%emt 0:03:47]} Be6 {[%emt 0:00:56]} 44. Rb4 {[%emt 0:07:51]} Bc8 {[%emt 0:00:16]} 45. Rc4 {[%emt 0:00:02]} Be6 {[%emt 0:03:35]} 46. Rb4 {[%emt 0:00:23]} Bc8 {[%emt 0:00:17]} 47. Rc4 {[%emt 0:00:07]} Rh3 {[%emt 0:00:47]} 48. Rd4 {[%emt 0:01:01]} Ke7 {[%emt 0:01:14]} 49. Re4+ {[%emt 0:00:23]} Kd8 {[%emt 0:02:44]} 50. Re5 {[%emt 0:02:22]} Rh4 {[%emt 0:01:22]} 51. Rg5 {[%emt 0:02:21]} Rxf4 {[%emt 0:00:49]} 52. Rxg7 {[%emt 0:00:05]} Rc4 {[%emt 0:00:29]} 53. Rg5 {[%emt 0:04:53]} Be6 {[%emt 0:00:26]} 54. Bb3 {[%emt 0:04:21]} Rb4 {[%emt 0:00:06]} 55. Rg3 {[%emt 0:00:02]} Ke7 {[%emt 0:03:53]} 56. Ka3 {[%emt 0:00:34]} Rxb3+ {[%emt 0:00:05]} 57. Rxb3 {[%emt 0:00:02]} Bxb3 {[%emt 0:00:04]} 58. Kxb3 {[%emt 0:00:03]} Ke6 {[%emt 0:00:03]} 59. Kb4 {[%emt 0:00:07]} Kd5 {[%emt 0:00:05]} 60. Ka5 {[%emt 0:00:03]} Kxc5 {[%emt 0:00:04]} 1/2-1/2

[Event "FIDE Womens World Cup 2021"]
[Site "Sochi"]
[Date "2021.07.13"]
[Round "1.2"]
[White "Munkhzul, Turmunkh"]
[Black "Brunello, Marina"]
[Result "1-0"]
[ECO "B92"]
[WhiteElo "2278"]
[BlackElo "2379"]
[Annotator "NA"]
[PlyCount "85"]
[EventDate "2021.07.12"]
[EventType "k.o."]
[EventCountry "RUS"]
[SourceTitle "playchess.com"]
[Source "ChessBase"]
[SourceQuality "1"]
[TimeControl "40/5400+30:1800+30"]

1. e4 {[%emt 0:00:14]} c5 {[%emt 0:00:06]} 2. Nf3 {[%emt 0:00:33]} d6 {[%emt 0:00:06]} 3. d4 {[%emt 0:00:41]} cxd4 {[%emt 0:00:07]} 4. Nxd4 {[%emt 0:00:06]} Nf6 {[%emt 0:00:06]} 5. Nc3 {[%emt 0:00:46]} a6 {[%emt 0:00:04]} 6. Be2 {[%emt 0:01:16]} e5 {[%emt 0:00:32]} 7. Nf3 {[%emt 0:01:03]} Be7 {[%emt 0:00:08]} 8. Bg5 {[%emt 0:00:45]} Nbd7 {[%emt 0:00:07]} 9. a4 {[%emt 0:00:53]} O-O {[%emt 0:03:06]} 10. O-O {[%emt 0:02:28]} h6 {[%emt 0:00:20]} 11. Be3 {[%emt 0:00:58]} Qc7 {[%emt 0:05:07]} 12. Nd2 {[%emt 0:09:03]} Nc5 {[%emt 0:03:11]} 13. Bf3 {[%emt 0:07:05]} Be6 {[%emt 0:01:52]} 14. Qe2 {[%emt 0:01:41]} Rfc8 {[%emt 0:03:24]} 15. Rfd1 {[%emt 0:02:02]} Qc6 {[%emt 0:02:28]} 16. h3 {[%emt 0:07:41]} Rab8 {[%emt 0:05:51]} 17. a5 {[%emt 0:09:24]} Ncd7 {[%emt 0:10:36]} 18. Nf1 Bc4 {[%emt 0:23:43]} 19. Qe1 {[%emt 0:08:37]} b5 {[%emt 0:01:24]} 20. axb6 {[%emt 0:03:46]} Nxb6 {[%emt 0:00:12]} 21. Ng3 {[%emt 0:03:22]} Bf8 {[%emt 0:03:30]} 22. b3 {[%emt 0:14:12]} Be6 {[%emt 0:03:02]} 23. Rxa6 {[%emt 0:00:41]} Qxc3 {[%emt 0:00:52]} 24. Qxc3 {[%emt 0:00:52]} Rxc3 {[%emt 0:00:06]} 25. Rxb6 {[%emt 0:00:31]} Rxb6 {[%emt 0:01:29]} 26. Bxb6 {[%emt 0:00:06]} Rxc2 {[%emt 0:00:06]} 27. b4 {[%emt 0:00:37]} g6 {[%emt 0:03:27]} 28. Ba5 {[%emt 0:02:21]} Bd7 {[%emt 0:02:01]} 29. Nf1 {[%emt 0:03:26]} Bc6 {[%emt 0:01:26]} 30. Ne3 {[%emt 0:01:07]} Ra2 {[%emt 0:01:03]} 31. Bd8 {[%emt 0:00:51]} Nxe4 {[%emt 0:05:19]} 32. Rc1 {[%emt 0:00:46]} Ba8 {[%emt 0:00:52]} 33. Rc8 {[%emt 0:00:28]} Kg7 {[%emt 0:00:39]} 34. Ba5 {[%emt 0:00:16]} Ra1+ {[%emt 0:04:53]} 35. Kh2 {[%emt 0:00:20]} Nxf2 {[%emt 0:01:20]} 36. Bxa8 {[%emt 0:01:11]} h5 {[%emt 0:01:21]} 37. g3 {[%emt 0:01:23]} Re1 {[%emt 0:01:19]} 38. Nc2 {[%emt 0:01:19]} Re2 {[%emt 0:02:09]} 39. Bf3 {[%emt 0:00:13]} Rd2 {[%emt 0:00:35]} 40. b5 {[%emt 0:00:06]} Rd3 {[%emt 0:00:16]} 41. Rc3 {[%emt 0:31:19]} Rd2 {[%emt 0:30:39]} 42. Rc7 {[%emt 0:00:05]} Rd3 {[%emt 0:01:06]} 43. Be2 {[%emt 0:00:07]} 1-0

[Event "FIDE Womens World Cup 2021"]
[Site "Sochi"]
[Date "2021.07.13"]
[Round "1.2"]
[White "Yakubbaeva, Nilufar"]
[Black "Cori T., Deysi"]
[Result "0-1"]
[ECO "C05"]
[WhiteElo "2273"]
[BlackElo "2388"]
[Annotator "NA"]
[PlyCount "86"]
[EventDate "2021.07.12"]
[EventType "k.o."]
[EventCountry "RUS"]
[SourceTitle "playchess.com"]
[Source "ChessBase"]
[SourceQuality "1"]
[TimeControl "40/5400+30:1800+30"]

1. e4 {[%emt 0:00:28]} e6 {[%emt 0:00:42]} 2. d4 {[%emt 0:00:10]} d5 {[%emt 0:00:02]} 3. Nd2 {[%emt 0:00:06]} Nf6 {[%emt 0:05:50]} 4. e5 {[%emt 0:00:16]} Nfd7 {[%emt 0:00:01]} 5. Bd3 {[%emt 0:00:13]} c5 {[%emt 0:00:58]} 6. c3 {[%emt 0:00:10]} b6 {[%emt 0:01:37]} 7. Ne2 {[%emt 0:00:20]} Ba6 {[%emt 0:00:36]} 8. Bb1 {[%emt 0:00:09]} Nc6 {[%emt 0:00:35]} 9. Nf3 {[%emt 0:01:35]} cxd4 {[%emt 0:04:24]} 10. cxd4 {[%emt 0:00:54]} Bb4+ {[%emt 0:00:19]} 11. Bd2 {[%emt 0:00:17]} Qe7 {[%emt 0:02:19]} 12. Nc3 {[%emt 0:27:51]} Rc8 {[%emt 0:07:48]} 13. a3 {[%emt 0:08:24]} Bxc3 {[%emt 0:04:37]} 14. Bxc3 {[%emt 0:00:08]} O-O {[%emt 0:09:36]} 15. Bd3 {[%emt 0:07:18]} Bxd3 {[%emt 0:00:59]} 16. Qxd3 {[%emt 0:00:07]} f6 {[%emt 0:00:12]} 17. O-O {[%emt 0:03:05]} fxe5 {[%emt 0:00:13]} 18. Nxe5 {[%emt 0:01:12]} Ndxe5 {[%emt 0:03:14]} 19. dxe5 {[%emt 0:00:34]} Rf5 {[%emt 0:02:44]} 20. Rac1 {[%emt 0:01:57]} Rcf8 {[%emt 0:03:46]} 21. Qe3 {[%emt 0:12:48]} Qh4 {[%emt 0:06:07]} 22. g3 {[%emt 0:09:30]} Qg4 {[%emt 0:05:07]} 23. f4 {[%emt 0:07:59]} g5 {[%emt 0:01:22]} 24. Kh1 {[%emt 0:01:21]} R8f7 {[%emt 0:02:42]} 25. Bd2 {[%emt 0:01:51]} Ne7 {[%emt 0:00:21]} 26. Qf3 {[%emt 0:03:34]} Qxf3+ {[%emt 0:05:31]} 27. Rxf3 {[%emt 0:01:11]} gxf4 {[%emt 0:00:05]} 28. gxf4 {[%emt 0:03:55]} Ng6 {[%emt 0:02:06]} 29. Rc6 {[%emt 0:01:40]} Re7 {[%emt 0:00:05]} 30. Rg3 {[%emt 0:00:17]} Kf7 {[%emt 0:00:37]} 31. Rc8 {[%emt 0:01:02]} Rd7 {[%emt 0:02:14]} 32. Kg2 {[%emt 0:01:36]} d4 {[%emt 0:00:33]} 33. Rh3 {[%emt 0:01:08]} h5 {[%emt 0:02:34]} 34. Rd3 {[%emt 0:02:12]} Rxf4 {[%emt 0:01:19]} 35. Bb4 {[%emt 0:01:06]} Rg4+ {[%emt 0:00:47]} 36. Kf2 {[%emt 0:00:21]} Nxe5 {[%emt 0:00:48]} 37. Rh3 {[%emt 0:00:17]} h4 38. Rf8+ {[%emt 0:00:42]} Kg7 {[%emt 0:11:12]} 39. Re8 {[%emt 0:00:36]} Rf7+ {[%emt 0:05:45]} 40. Ke2 {[%emt 0:01:07]} a5 {[%emt 0:02:20]} 41. Bd6 {[%emt 0:07:52]} Re4+ {[%emt 0:02:04]} 42. Kd1 {[%emt 0:01:02]} Nc4 {[%emt 0:00:51]} 43. Be7 {[%emt 0:00:45]} Rf2 {[%emt 0:01:23]} 0-1

[Event "FIDE Womens World Cup 2021"]
[Site "Sochi"]
[Date "2021.07.13"]
[Round "1.2"]
[White "Ouellet, Maili-Jade"]
[Black "Maltsevskaya, Aleksandra"]
[Result "1/2-1/2"]
[ECO "D11"]
[WhiteElo "2257"]
[BlackElo "2382"]
[Annotator "NA"]
[PlyCount "106"]
[EventDate "2021.07.12"]
[EventType "k.o."]
[EventCountry "RUS"]
[SourceTitle "playchess.com"]
[Source "ChessBase"]
[SourceQuality "1"]
[TimeControl "40/5400+30:1800+30"]

1. d4 {[%emt 0:00:01]} d5 {[%emt 0:00:07]} 2. c4 {[%emt 0:00:06]} c6 {[%emt 0:00:05]} 3. Nf3 {[%emt 0:00:04]} Nf6 {[%emt 0:00:07]} 4. e3 {[%emt 0:00:03]} e6 {[%emt 0:01:03]} 5. Bd3 {[%emt 0:00:06]} Nbd7 {[%emt 0:00:34]} 6. b3 {[%emt 0:00:16]} b6 {[%emt 0:04:23]} 7. O-O {[%emt 0:00:15]} Bb7 {[%emt 0:00:07]} 8. Bb2 {[%emt 0:00:09]} dxc4 {[%emt 0:08:53]} 9. bxc4 {[%emt 0:00:33]} c5 {[%emt 0:00:37]} 10. Nbd2 {[%emt 0:03:18]} cxd4 {[%emt 0:06:30]} 11. exd4 {[%emt 0:00:28]} Be7 {[%emt 0:00:07]} 12. Qe2 {[%emt 0:05:05]} O-O {[%emt 0:00:35]} 13. Rac1 {[%emt 0:06:36]} Re8 {[%emt 0:04:39]} 14. Rfd1 {[%emt 0:04:31]} Qc7 {[%emt 0:08:19]} 15. Nf1 {[%emt 0:06:24]} Bf8 {[%emt 0:08:49]} 16. Ng3 {[%emt 0:15:07]} Rad8 {[%emt 0:05:34]} 17. Ne5 {[%emt 0:17:35]} Nxe5 {[%emt 0:01:45]} 18. dxe5 {[%emt 0:00:04]} Nd7 {[%emt 0:00:18]} 19. Bb1 {[%emt 0:02:59]} g6 {[%emt 0:18:00]} 20. Be4 {[%emt 0:19:24]} Ba6 {[%emt 0:04:10]} 21. f4 {[%emt 0:04:22]} Nc5 {[%emt 0:02:56]} 22. Bd4 {[%emt 0:03:55]} Rd7 {[%emt 0:04:17]} 23. Be3 {[%emt 0:02:38]} Rxd1+ {[%emt 0:01:22]} 24. Rxd1 {[%emt 0:02:59]} Rd8 {[%emt 0:00:08]} 25. Rxd8 {[%emt 0:01:34]} Qxd8 {[%emt 0:00:06]} 26. Bc2 {[%emt 0:00:35]} f5 {[%emt 0:03:36]} 27. exf6 {[%emt 0:01:29]} Qxf6 {[%emt 0:00:05]} 28. Ne4 {[%emt 0:02:27]} Nxe4 {[%emt 0:03:07]} 29. Bxe4 {[%emt 0:00:04]} Bc5 {[%emt 0:00:05]} 30. Bd3 {[%emt 0:01:16]} Kf7 {[%emt 0:05:15]} 31. Bxc5 {[%emt 0:00:19]} bxc5 {[%emt 0:00:05]} 32. g3 {[%emt 0:00:53]} Qd4+ {[%emt 0:00:52]} 33. Kf1 {[%emt 0:00:09]} Bb7 {[%emt 0:00:07]} 34. Ke1 {[%emt 0:00:29]} Bc6 {[%emt 0:00:57]} 35. Bc2 {[%emt 0:00:32]} Kf6 {[%emt 0:02:11]} 36. Bd3 {[%emt 0:00:12]} Qg1+ {[%emt 0:05:45]} 37. Kd2 {[%emt 0:00:09]} Qa1 {[%emt 0:01:09]} 38. Bc2 {[%emt 0:00:44]} Qd4+ {[%emt 0:01:11]} 39. Ke1 {[%emt 0:01:10]} Qg1+ {[%emt 0:01:07]} 40. Kd2 {[%emt 0:00:09]} Qd4+ {[%emt 0:00:15]} 41. Kc1 {[%emt 0:30:41]} Qa1+ {[%emt 0:30:16]} 42. Bb1 {[%emt 0:00:30]} Qc3+ {[%emt 0:00:08]} 43. Bc2 {[%emt 0:00:08]} Qa1+ {[%emt 0:00:06]} 44. Kd2 {[%emt 0:00:19]} Qd4+ {[%emt 0:00:40]} 45. Qd3 {[%emt 0:00:39]} e5 {[%emt 0:00:49]} 46. Qxd4 {[%emt 0:00:00]} exd4 {[%emt 0:00:00]} 47. Ke2 {[%emt 0:00:00]} Bd7 {[%emt 0:00:00]} 48. Be4 {[%emt 0:00:00]} Be6 {[%emt 0:00:00]} 49. Bd3 {[%emt 0:00:00]} Bf5 {[%emt 0:00:00]} 50. Bxf5 {[%emt 0:00:00]} gxf5 {[%emt 0:00:00]} 51. Kd3 {[%emt 0:00:00]} h5 {[%emt 0:00:00]} 52. h4 {[%emt 0:00:00]} Ke6 {[%emt 0:00:00]} 53. Kc2 {[%emt 0:00:00]} Kd6 {[%emt 0:00:00]} 1/2-1/2

[Event "FIDE Womens World Cup 2021"]
[Site "Sochi"]
[Date "2021.07.13"]
[Round "1.2"]
[White "Fataliyeva, Ulviyya"]
[Black "Padmini, Rout"]
[Result "0-1"]
[ECO "A45"]
[WhiteElo "2253"]
[BlackElo "2370"]
[Annotator "NA"]
[PlyCount "76"]
[EventDate "2021.07.12"]
[EventType "k.o."]
[EventCountry "RUS"]
[SourceTitle "playchess.com"]
[Source "ChessBase"]
[SourceQuality "1"]
[TimeControl "40/5400+30:1800+30"]

1. d4 {[%emt 0:00:04]} Nf6 {[%emt 0:00:41]} 2. Bg5 {[%emt 0:00:06]} d5 {[%emt 0:01:24]} 3. Bxf6 {[%emt 0:00:16]} exf6 {[%emt 0:00:12]} 4. e3 {[%emt 0:00:22]} c6 {[%emt 0:00:32]} 5. Nd2 {[%emt 0:01:36]} Bd6 {[%emt 0:01:44]} 6. Bd3 {[%emt 0:00:24]} f5 {[%emt 0:04:41]} 7. Ne2 {[%emt 0:00:30]} g6 {[%emt 0:01:50]} 8. b3 {[%emt 0:01:14]} Nd7 {[%emt 0:00:46]} 9. c4 {[%emt 0:02:41]} dxc4 {[%emt 0:03:23]} 10. bxc4 {[%emt 0:00:16]} c5 {[%emt 0:00:33]} 11. d5 {[%emt 0:00:52]} O-O {[%emt 0:00:49]} 12. Rb1 {[%emt 0:14:44]} Qe7 {[%emt 0:06:23]} 13. Nf3 {[%emt 0:07:15]} Nf6 {[%emt 0:01:01]} 14. O-O {[%emt 0:01:03]} Ne4 {[%emt 0:02:06]} 15. Qc2 {[%emt 0:00:12]} Re8 {[%emt 0:03:18]} 16. Ng3 {[%emt 0:10:09]} h5 {[%emt 0:03:09]} 17. Nd2 {[%emt 0:03:21]} Nxg3 {[%emt 0:09:00]} 18. hxg3 {[%emt 0:00:37]} h4 {[%emt 0:00:46]} 19. gxh4 {[%emt 0:02:06]} Qxh4 {[%emt 0:00:06]} 20. Nf3 {[%emt 0:01:59]} Qh5 {[%emt 0:03:09]} 21. Rfe1 {[%emt 0:00:35]} b6 {[%emt 0:04:17]} 22. Kf1 {[%emt 0:02:35]} f4 {[%emt 0:05:22]} 23. e4 {[%emt 0:05:58]} Bg4 {[%emt 0:00:26]} 24. Ng1 {[%emt 0:05:16]} Bd7 {[%emt 0:02:58]} 25. a4 {[%emt 0:04:15]} Rab8 {[%emt 0:01:01]} 26. Qd2 {[%emt 0:03:48]} a5 {[%emt 0:03:11]} 27. Bc2 {[%emt 0:00:55]} Qh8 {[%emt 0:04:37]} 28. Rb3 {[%emt 0:02:35]} Bxa4 {[%emt 0:04:31]} 29. Rxb6 {[%emt 0:01:37]} Rxb6 {[%emt 0:02:07]} 30. Bxa4 {[%emt 0:00:07]} Rb2 {[%emt 0:04:22]} 31. Qxa5 {[%emt 0:01:41]} Qh4 {[%emt 0:02:42]} 32. Nh3 {[%emt 0:00:21]} f3 {[%emt 0:04:10]} 33. Qc3 {[%emt 0:00:49]} fxg2+ {[%emt 0:00:26]} 34. Kg1 {[%emt 0:00:17]} Rxe4 {[%emt 0:02:09]} 35. Bd7 {[%emt 0:06:19]} Rxe1+ {[%emt 0:01:09]} 36. Qxe1 {[%emt 0:00:05]} Qxc4 {[%emt 0:00:46]} 37. Kxg2 {[%emt 0:00:47]} Qxd5+ {[%emt 0:00:21]} 38. Kg1 {[%emt 0:00:06]} Qe5 {[%emt 0:00:15]} 0-1